bitfinex/quotes_ETHUSD_20220213
["timestamp","ask_amount","ask_price","bid_price","bid_amount"]
[1644782305004,2.05307543,2860.6,2859.3,0.1748]
[1644782305200,0.87224489,2860.3,2859.3,0.18619732]
[1644782306244,0.87224489,2860.3,2859.3,0.1748]
[1644782306444,0.87224489,2860.3,2859.3,0.18619677]
[1644782306643,0.87224489,2860.3,2859.3,1.06052677]
[1644782306843,0.87224489,2860.3,2859.4,1.48887267]
[1644782307044,0.87224489,2860.3,2859.4,2.36322267]
[1644782307245,0.87224489,2860.3,2859.4,0.87435]
[1644782307444,0.17872543,2860.6,2859.4,0.87435]
[1644782307648,0.17872543,2860.6,2859.5,0.87431]
[1644782308246,0.17872543,2860.6,2859.3,3.68325691]
[1644782308448,0.89853865,2860.3,2859.3,1.93472691]
[1644782308747,0.89853865,2860.3,2859.4,1.48887742]
[1644782308946,0.89853865,2860.3,2859.5,0.8743]
[1644782310400,0.1748,2860.5,2859.5,0.8743]
[1644782310597,0.1748,2860.5,2859.3,1.93472704]
[1644782310797,1.05576017,2860.6,2859.4,1.48883876]
[1644782310997,0.1748,2860.6,2859.4,1.48883876]
[1644782311200,0.88096017,2860.5,2859.5,0.87432]
[1644782311398,0.83891367,2860.3,2859.5,0.87432]
[1644782311798,0.83891367,2860.3,2859.3,1.93472704]
[1644782311799,0.83891367,2860.3,2859.6,0.1748]
[1644782312302,0.83891367,2860.3,2859.4,0.1748]
[1644782312500,0.83891367,2860.3,2859.5,1.48886626]
[1644782312703,0.83891367,2860.3,2859.6,0.1748]
[1644782312903,0.83891367,2860.3,2859.7,1.48886626]
[1644782314143,0.83891367,2860.3,2859.7,2.36310626]
[1644782314342,0.83891367,2860.3,2859.7,0.87424]
[1644782314546,7.92236017,2860.7,2859.7,0.87424]
[1644782314744,9.67101017,2860.7,2859.5,0.87431]
[1644782314944,9.67101017,2860.7,2859.6,1.66357243]
[1644782315348,8.79667017,2860.7,2859.7,1.48877243]
[1644782315544,0.1748,2860.6,2859.7,1.48877243]
[1644782315745,1.05426389,2860.4,2859.4,0.1748]
[1644782316045,1.05426389,2860.4,2859.5,1.48880392]
[1644782316244,1.05426389,2860.4,2859.4,1.48880392]
[1644782316444,1.05426389,2860.4,2859.5,1.66360392]
[1644782316644,1.05426389,2860.4,2859.6,1.48782597]
[1644782316844,0.8744,2860.5,2859.6,1.48782597]
[1644782317044,0.8744,2860.5,2859.4,0.1748]
[1644782317900,0.95405853,2860.1,2859.4,0.1748]
[1644782319298,1.05576017,2860.6,2859.4,1.0491]
[1644782319902,1.05576017,2860.6,2859.4,0.8743]
[1644782320098,1.05576017,2860.6,2859.6,0.8743]
[1644782320503,0.8543191,2860.3,2859.3,0.88392435]
[1644782320700,0.8543191,2860.3,2859.3,1.74687772]
[1644782320900,0.8543191,2860.3,2859.3,1.75827532]
[1644782321154,0.8543191,2860.3,2859.3,3.50683532]
[1644782321356,0.8543191,2860.3,2859.3,2.63248532]
[1644782321551,0.8543191,2860.3,2859.3,1.7599576]
[1644782321952,0.8543191,2860.3,2859.3,1.74856]
[1644782322151,0.8543191,2860.3,2859.3,1.75995677]
[1644782322352,0.59353134,2860.3,2859.3,1.75995677]
[1644782322556,0.1748,2860.2,2859.3,1.75995677]
[1644782323258,0.1748,2860.2,2859.3,0.01139663]
[1644782323952,0.59353134,2860.3,2859.3,0.01139663]
[1644782324151,1.0492,2860.5,2859.3,0.88574663]
[1644782324152,0.1748,2860.5,2859.3,0.88574663]
[1644782324452,7.0414,2860.7,2859.5,0.8743]
[1644782325296,1.17877883,2860.5,2859.5,1.93308128]
[1644782325802,1.17877883,2860.5,2859.5,2.80737128]
[1644782325995,1.17877883,2860.5,2859.6,0.87427]
[1644782326402,7.0414,2860.7,2859.6,0.87427]
[1644782327698,0.1748,2860.6,2859.6,0.87427]
[1644782327899,0.1248,2860.6,2859.6,0.87427]
[1644782328098,1.00412924,2860.6,2859.6,0.87427]
[1644782328957,1.00412924,2860.6,2859.5,2.10787128]
[1644782329764,1.00412924,2860.6,2859.5,2.98217128]
[1644782329954,0.1248,2860.6,2859.5,2.98217128]
[1644782331155,1.17779475,2860.6,2859.5,2.98217128]
[1644782331756,1.17779475,2860.6,2859.5,2.10788128]
[1644782332997,1.17779475,2860.6,2859.5,2.98219128]
[1644782333196,1.17779475,2860.6,2859.6,0.87428]
[1644782336748,1.17779475,2860.6,2859.7,1.48869697]
[1644782338152,1.17779475,2860.6,2859.8,1.48869697]
[1644782338351,1.17779475,2860.6,2859.9,1.48869697]
[1644782338551,1.17779475,2860.6,2860.0,1.48869697]
[1644782338754,1.17779475,2860.6,2860.1,1.48869697]
[1644782338954,1.17779475,2860.6,2859.5,1.23358128]
[1644782339252,0.87433,2860.5,2859.6,1.48866391]
[1644782340701,1.88009017,2860.6,2859.6,26.2073819]
[1644782340702,0.1248,2860.6,2859.6,26.2073819]
[1644782340903,0.01139145,2860.8,2859.8,0.66097723]
[1644782341100,0.25,2861.0,2859.9,0.61500278]
[1644782341307,0.01139159,2860.8,2860.0,1.48866391]
[1644782341500,0.01139159,2860.8,2860.1,0.1746]
[1644782341703,0.01139159,2860.8,2860.3,1.02582925]
[1644782341906,0.01139159,2860.8,2860.4,1.48866391]
[1644782342302,1.87861891,2861.2,2860.4,1.48866391]
[1644782342503,0.01139297,2860.8,2860.4,1.48866391]
[1644782343504,0.00392921,2861.0,2860.4,1.48866391]
[1644782343775,0.01139297,2860.8,2860.4,1.48866391]
[1644782344370,0.01139297,2860.8,2860.5,1.48866391]
[1644782344571,0.01139297,2860.8,2860.6,1.48866391]
[1644782344771,0.88488938,2861.1,2860.1,0.1748]
[1644782344972,0.0113931,2860.8,2860.2,1.48843575]
[1644782345373,1.0367118,2860.7,2860.2,1.48843575]
[1644782345775,1.0367118,2860.7,2860.1,1.48843575]
[1644782345978,1.0367118,2860.7,2860.2,1.48843575]
[1644782346178,1.0367118,2860.7,2860.3,1.48843575]
[1644782346376,1.0367118,2860.7,2859.9,0.11000278]
[1644782346580,1.0367118,2860.7,2859.0,11.59934]
[1644782346581,1.0367118,2860.7,2860.0,1.66331969]
[1644782346780,1.0367118,2860.7,2859.4,0.1748]
[1644782346781,6.05576017,2860.6,2859.4,0.1748]
[1644782346977,6.05576017,2860.6,2859.5,1.48877553]
[1644782346978,0.88096017,2860.4,2859.5,1.48877553]
[1644782347177,0.1748,2860.3,2859.6,1.48877553]
[1644782347401,0.1748,2860.3,2859.7,1.48877553]
[1644782347402,0.87452,2860.2,2859.7,1.48877553]
[1644782347601,1.06481319,2860.1,2859.8,1.48877553]
[1644782347808,1.06481319,2860.1,2859.3,0.01139732]
[1644782347996,0.8745,2860.0,2859.4,1.48881258]
[1644782348598,1.74902,2860.0,2859.5,1.48881258]
[1644782348797,1.74902,2860.0,2859.4,1.48881258]
[1644782349102,1.74902,2860.0,2859.6,1.48881258]
[1644782349304,1.74902,2860.0,2859.5,1.48881258]
[1644782349305,0.87457,2859.8,2859.5,1.48881258]
[1644782349499,0.87457,2859.8,2859.7,1.48881258]
[1644782349697,1.74917,2859.8,2859.2,0.1748]
[1644782349900,1.74917,2859.8,2859.3,1.50036958]
[1644782350102,1.74917,2859.8,2859.4,1.48897281]
[1644782350300,1.03717836,2859.6,2859.4,1.48897281]
[1644782350898,1.03717836,2859.6,2859.5,1.48897281]
[1644782351152,1.03717836,2859.6,2859.4,1.48897281]
[1644782351353,0.00115609,2859.5,2859.3,0.01139594]
[1644782351556,0.00115609,2859.5,2859.4,1.48898319]
[1644782353354,0.00115609,2859.5,2859.3,0.0113958]
[1644782353553,0.00115609,2859.5,2859.4,1.48898319]
[1644782353954,0.00115609,2859.5,2859.3,0.0113958]
[1644782354359,0.00115609,2859.5,2858.7,0.1748]
[1644782354555,0.00115609,2859.5,2859.3,0.01139579]
[1644782355610,1.00898273,2859.2,2858.7,0.1748]
[1644782355806,0.87581609,2859.5,2858.8,1.4891063]
[1644782356108,0.1748,2859.4,2858.8,1.4891063]
[1644782356306,0.1748,2859.4,2858.8,1.4876021]
[1644782356911,0.1748,2859.4,2859.0,0.01139616]
[1644782357206,1.03763072,2859.4,2859.0,0.01139616]
[1644782357605,1.91231072,2859.4,2859.0,0.01139616]
[1644782358006,2.78701072,2859.4,2858.7,0.1748]
[1644782358208,2.78701072,2859.4,2859.1,0.01139604]
[1644782358406,1.91231072,2859.4,2859.1,0.01139604]
[1644782358671,1.03763072,2859.4,2859.1,0.01139604]
[1644782358953,1.91232072,2859.4,2859.1,0.01139604]
[1644782359153,1.91232072,2859.4,2858.7,0.1748]
[1644782359354,1.91232072,2859.4,2858.4,0.85931246]
[1644782359355,1.91232072,2859.4,2859.1,0.01139598]
[1644782359557,1.03763072,2859.4,2859.1,0.01139598]
[1644782359957,1.91232072,2859.4,2859.1,0.01139598]
[1644782360357,1.91232072,2859.4,2858.4,0.1748]
[1644782360560,3.5438092,2859.3,2859.1,0.0104108]
[1644782361664,3.5438092,2859.3,2858.4,0.1748]
[1644782361862,3.5438092,2859.3,2859.1,0.01041098]
[1644782362507,4.4185292,2859.3,2859.1,0.01041098]
[1644782362703,3.51798369,2859.2,2858.3,0.31299997]
[1644782362903,4.56753369,2859.2,2859.1,0.01041098]
[1644782363906,4.56753369,2859.2,2858.3,0.13819997]
[1644782364205,4.56753369,2859.2,2859.0,0.00993631]
[1644782364206,0.87478,2859.1,2859.0,0.00993631]
[1644782364428,5.78337609,2859.1,2859.0,0.00993631]
[1644782365207,0.8749,2858.9,2858.0,1.28888273]
[1644782365412,4.15793127,2858.8,2857.8,0.1749]
[1644782366467,0.87491,2858.7,2857.8,0.1749]
[1644782366669,3.26708633,2858.6,2858.2,0.00993927]
[1644782366868,0.87491,2858.7,2858.2,0.00993927]
[1644782367073,3.83847194,2859.0,2858.2,0.00993927]
[1644782367672,3.83847194,2859.0,2857.8,1.30969915]
[1644782367868,3.83847194,2859.0,2858.5,0.01003253]
[1644782368070,1.04987286,2858.8,2858.5,0.01003253]
[1644782368269,3.49628712,2858.9,2858.5,0.01003253]
[1644782368569,4.04175088,2859.2,2858.5,0.01003253]
[1644782368768,4.04175088,2859.2,2857.8,1.13479915]
[1644782368769,5.79147088,2859.2,2857.8,1.13479915]
[1644782368968,5.79147088,2859.2,2858.6,0.01003218]
[1644782369368,6.66625088,2859.2,2858.6,0.01003218]
[1644782369909,0.85678784,2858.9,2857.9,0.8748]
[1644782370106,3.67575593,2858.8,2857.7,0.83788168]
[1644782370310,3.67575593,2858.8,2857.7,0.47690445]
[1644782370311,4.55064593,2858.8,2857.7,0.47690445]
[1644782370703,4.55064593,2858.8,2857.7,0.17690445]
[1644782371403,4.54910243,2858.8,2858.1,0.00999512]
[1644782371803,0.87493,2858.7,2858.1,0.00999512]
[1644782372007,3.30821513,2858.6,2858.1,0.00999512]
[1644782372405,3.30821513,2858.6,2857.9,0.1749]
[1644782372602,3.73093841,2858.8,2858.2,0.00999477]
[1644782373403,4.60584841,2858.8,2858.2,0.00999477]
[1644782373651,4.60584841,2858.8,2857.9,0.1749]
[1644782373851,4.60584841,2858.8,2858.4,0.00999424]
[1644782374852,4.60584841,2858.8,2857.9,0.1749]
[1644782375055,4.60584841,2858.8,2858.5,0.00999955]
[1644782376056,4.60584841,2858.8,2857.9,0.1749]
[1644782376253,4.60584841,2858.8,2858.5,0.00999937]
[1644782377409,0.87493,2858.7,2858.5,0.00999937]
[1644782377613,3.18068181,2858.6,2858.5,0.00999937]
[1644782378415,3.18068181,2858.6,2857.8,0.00200445]
[1644782378608,3.18068181,2858.6,2858.4,0.0099989]
[1644782379608,3.18068181,2858.6,2857.8,0.00200445]
[1644782379810,3.18068181,2858.6,2858.4,0.00999907]
[1644782380012,3.39356797,2858.8,2858.4,0.00999907]
[1644782380710,3.39356797,2858.8,2857.8,0.00200445]
[1644782380911,3.39356797,2858.8,2857.8,1.49142457]
[1644782381151,3.39356797,2858.8,2858.5,0.00999872]
[1644782381359,3.21866797,2858.8,2858.5,0.00999872]
[1644782381752,4.09359797,2858.8,2858.5,0.00999872]
[1644782381951,4.09359797,2858.8,2857.8,0.17690445]
[1644782382151,0.87493,2858.7,2858.5,0.00999867]
[1644782382351,3.13938737,2858.6,2858.5,0.00999867]
[1644782383152,3.13938737,2858.6,2858.0,0.00200445]
[1644782383353,3.13938737,2858.6,2858.4,0.00999902]
[1644782383553,0.87493,2858.7,2858.4,0.00999902]
[1644782384356,0.87493,2858.7,2858.0,0.00200445]
[1644782384555,3.22369918,2858.6,2858.4,0.00999902]
[1644782384755,0.87493,2858.7,2858.4,0.00999902]
[1644782385010,3.18136478,2858.6,2858.4,0.00999902]
[1644782385613,3.18136478,2858.6,2858.0,0.00200445]
[1644782385811,3.18136478,2858.6,2858.4,0.00999917]
[1644782386011,1.7499,2858.7,2858.4,0.00999917]
[1644782386211,3.16454714,2858.6,2858.4,0.00999917]
[1644782386814,3.16454714,2858.6,2858.0,0.00200445]
[1644782387012,3.16454714,2858.6,2858.4,0.00999917]
[1644782387212,1.7499,2858.7,2858.4,0.00999917]
[1644782387610,3.14787581,2858.6,2858.4,0.00999917]
[1644782388015,3.14787581,2858.6,2857.8,0.00200445]
[1644782388212,4.20590072,2858.6,2857.8,0.00200445]
[1644782388414,4.20590072,2858.6,2858.4,0.00999917]
[1644782388657,1.7499,2858.7,2858.4,0.00999917]
[1644782388864,3.15336432,2858.6,2858.4,0.00999917]
[1644782389256,3.15336432,2858.6,2857.8,0.17690445]
[1644782389455,3.15336432,2858.6,2858.4,0.00999918]
[1644782389657,1.7499,2858.7,2858.4,0.00999918]
[1644782390457,1.7499,2858.7,2858.0,0.00200445]
[1644782390660,0.87493,2858.7,2858.4,0.009999]
[1644782391056,0.87493,2858.7,2858.5,1.48938899]
[1644782391756,0.87493,2858.7,2858.5,0.00999883]
[1644782392157,3.21822033,2858.6,2858.5,0.00999883]
[1644782392803,3.21822033,2858.6,2858.5,1.48941709]
[1644782393009,3.21822033,2858.6,2858.4,0.009999]
[1644782393208,3.21822033,2858.6,2858.5,1.48941709]
[1644782394205,3.21822033,2858.6,2858.4,0.009999]
[1644782394405,3.21822033,2858.6,2858.5,1.48941709]
[1644782395106,3.21822033,2858.6,2858.5,1.48839347]
[1644782395306,3.21822033,2858.6,2858.0,0.00200445]
[1644782395505,3.21822033,2858.6,2858.4,0.009999]
[1644782396352,0.1749,2859.0,2858.1,0.87478]
[1644782396353,3.56240419,2859.0,2858.1,0.87478]
[1644782396658,0.1749,2859.1,2858.4,0.00999918]
[1644782396858,3.7456,2859.4,2858.4,0.51499918]
[1644782397058,3.7456,2859.4,2858.6,1.15233733]
[1644782397251,3.7456,2859.4,2858.6,1.45233733]
[1644782397452,3.7456,2859.4,2858.8,0.8745]
[1644782397853,0.13935606,2859.5,2858.9,0.00999743]
[1644782398053,3.59597999,2859.5,2858.9,0.00999743]
[1644782398854,3.59597999,2859.5,2858.7,0.87462]
[1644782399153,3.59597999,2859.5,2859.1,0.00999673]
[1644782400008,4.47694016,2859.5,2858.7,0.87462]
[1644782400218,4.47694016,2859.5,2859.2,0.00999636]
[1644782400409,0.13935606,2859.5,2859.2,0.00999636]
[1644782400610,3.31158733,2859.5,2859.2,0.00999636]
[1644782401213,3.31158733,2859.5,2858.8,0.87458]
[1644782401409,3.48638733,2859.5,2859.2,0.00999619]
[1644782401812,3.48638733,2859.5,2858.8,0.58457619]
[1644782401813,0.31415606,2859.5,2858.8,0.58457619]
[1644782402011,3.50818831,2859.5,2858.9,0.87454]
[1644782402208,3.33338831,2859.5,2858.9,0.87454]
[1644782402409,0.06882817,2859.2,2858.9,2.04908]
[1644782402609,3.19518834,2859.5,2859.3,0.0948373]
[1644782402610,0.00115609,2859.5,2859.3,0.0948373]
[1644782403012,0.00115609,2859.5,2859.4,1.37934]
[1644782403209,0.00115609,2859.5,2859.4,2.15414]
[1644782403414,0.00115609,2859.5,2859.4,3.04508074]
[1644782403699,0.00115609,2859.5,2859.4,6.71592755]
[1644782403893,0.00115609,2859.5,2859.4,7.88801884]
[1644782404094,0.00115609,2859.5,2859.4,7.94239108]
[1644782404297,0.00115609,2859.5,2859.4,7.85552154]
[1644782404694,0.00115609,2859.5,2859.4,4.21717203]
[1644782405096,0.00115609,2859.5,2859.4,3.21717203]
[1644782405293,0.00115609,2859.5,2859.4,4.21717203]
[1644782405695,0.00115609,2859.5,2859.4,3.21717203]
[1644782405905,0.00115609,2859.5,2859.4,4.21717203]
[1644782406102,0.00115609,2859.5,2859.4,3.21717203]
[1644782406298,0.00115609,2859.5,2859.4,2.32623129]
[1644782406704,0.00115609,2859.5,2859.4,2.15414]
[1644782406900,0.00115609,2859.5,2859.4,1.64914]
[1644782407298,0.00115609,2859.5,2859.4,1.47434]
[1644782407515,0.00115609,2859.5,2859.4,1.17434]
[1644782407910,0.00115609,2859.5,2859.4,1.47434]
[1644782408715,0.00115609,2859.5,2859.4,0.87434]
[1644782408911,0.00115609,2859.5,2859.4,1.17434]
[1644782409110,0.00115609,2859.5,2859.4,1.77233112]
[1644782409310,0.00115609,2859.5,2859.4,2.07032224]
[1644782409920,0.00115609,2859.5,2859.4,1.47032224]
[1644782410112,0.00115609,2859.5,2859.4,0.59598224]
[1644782412564,0.1748,2859.5,2859.4,0.59598224]
[1644782413166,0.1748,2859.5,2859.4,8.224e-05]
[1644782414268,0.1748,2859.5,2859.3,0.0948373]
[1644782414468,1.17760596,2859.4,2859.3,0.0948373]
[1644782415707,2.17760596,2859.4,2859.3,0.0948373]
[1644782415908,2.35240596,2859.4,2859.3,0.0948373]
[1644782416613,1.35240596,2859.4,2859.3,0.0948373]
[1644782417310,2.35240596,2859.4,2859.3,0.0948373]
[1644782417508,1.35240596,2859.4,2859.3,0.0948373]
[1644782419458,1.17760596,2859.4,2859.3,0.0948373]
[1644782428765,2.17760596,2859.4,2859.3,0.0948373]
[1644782429165,1.17760596,2859.4,2859.3,0.0948373]
[1644782429767,4.75759379,2859.4,2859.3,0.0948373]
[1644782430709,5.63232379,2859.4,2859.3,0.0948373]
[1644782431809,4.93239379,2859.4,2859.3,0.0948373]
[1644782433109,4.75759379,2859.4,2859.3,0.0948373]
[1644782433961,4.5769839,2859.4,2859.3,0.0948373]
[1644782434262,1.17760596,2859.4,2859.3,0.0948373]
[1644782435363,4.40422258,2859.4,2859.3,0.0948373]
[1644782436364,1.17760596,2859.4,2859.3,0.0948373]
[1644782436565,2.25426,2860.0,2859.3,0.0948373]
[1644782436566,1.3754,2859.9,2859.3,0.0948373]
[1644782436764,1.2006,2859.9,2859.3,0.0948373]
[1644782436965,3.19009829,2859.8,2859.3,0.0948373]
[1644782437414,5.81401829,2859.8,2859.3,0.0948373]
[1644782437713,1.03434094,2859.7,2859.3,0.0948373]
[1644782438110,3.18571771,2859.6,2859.3,0.09396491]
[1644782438711,0.87471,2859.5,2859.3,0.09396491]
[1644782438912,3.18571771,2859.6,2859.3,0.09396491]
[1644782439111,1.03434094,2859.7,2859.3,0.09396491]
[1644782439517,0.98434094,2859.7,2859.3,0.09396491]
[1644782440316,5.08221355,2859.7,2859.3,0.09396491]
[1644782440517,5.95688355,2859.7,2859.3,0.09396491]
[1644782441359,2.73368094,2859.7,2859.3,0.09396491]
[1644782441761,0.87467,2859.6,2859.3,0.09396491]
[1644782442260,1.85901094,2859.7,2859.3,0.09396491]
[1644782442864,0.98434094,2859.7,2859.3,0.09396491]
[1644782443663,0.98434094,2859.7,2859.4,1.48896131]
[1644782444062,2.62388,2859.8,2859.4,1.48896131]
[1644782444361,1.4101244,2860.0,2859.4,1.48896131]
[1644782444908,2.2847144,2860.0,2859.4,1.48896131]
[1644782445111,1.00953907,2859.6,2859.3,0.09396491]
[1644782446913,0.87459,2859.9,2859.3,0.09396491]
[1644782447115,0.04484849,2860.1,2859.4,2.53805747]
[1644782447315,0.04091928,2860.1,2859.5,1.48890747]
[1644782447513,0.04091928,2860.1,2859.6,0.1748]
[1644782447718,0.04091928,2860.1,2859.7,1.78890747]
[1644782447913,0.04091928,2860.1,2859.8,1.48890747]
[1644782448118,0.85659505,2860.4,2859.9,0.1748]
[1644782448119,0.00392921,2860.3,2859.9,0.1748]
[1644782448313,0.01023076,2860.2,2859.6,0.1748]
[1644782448513,0.01023076,2860.2,2859.7,1.48873285]
[1644782448759,0.01023076,2860.2,2859.4,0.6]
[1644782448760,0.01023076,2860.2,2859.8,0.1748]
[1644782449162,0.00392921,2860.3,2859.8,0.1748]
[1644782449559,0.01023101,2860.2,2859.8,0.1748]
[1644782450362,0.77075527,2860.4,2859.8,0.1748]
[1644782450562,0.00393439,2860.3,2859.8,0.1748]
[1644782450767,0.01023101,2860.2,2859.8,0.1748]
[1644782451363,0.01023101,2860.2,2859.9,1.48870498]
[1644782451767,0.00393439,2860.3,2859.7,0.1748]
[1644782451966,0.0111813,2860.3,2859.8,1.48871091]
[1644782452166,1.18378687,2859.9,2859.8,1.48871091]
[1644782452607,0.00724691,2860.3,2859.8,1.48871091]
[1644782452808,0.00393439,2860.6,2859.8,1.48871091]
[1644782453009,0.00393439,2860.6,2859.5,1.04914]
[1644782453010,0.00393439,2860.6,2859.6,0.3]
[1644782453208,0.00724653,2860.3,2859.7,1.66351238]
[1644782453412,0.00724653,2860.3,2859.8,1.48871238]
[1644782453608,1.09030929,2860.0,2859.8,1.48871238]
[1644782453808,1.09030929,2860.0,2859.9,1.48871238]
[1644782454008,1.09030929,2860.0,2859.7,1.48871238]
[1644782455510,1.09030929,2860.0,2859.8,1.48871238]
[1644782455708,1.09030929,2860.0,2859.6,0.01084067]
[1644782455913,1.09030929,2860.0,2859.7,1.48879167]
[1644782456177,1.09030929,2860.0,2859.6,0.01084067]
[1644782456361,1.09030929,2860.0,2859.5,0.1748]
[1644782456565,0.1748,2859.9,2859.6,1.4888329]
[1644782456763,0.1748,2859.9,2859.6,0.01084067]
[1644782456764,1.0494,2859.9,2859.6,0.01084067]
[1644782457264,1.92408,2859.9,2859.6,0.01084067]
[1644782457664,1.92408,2859.9,2859.3,0.09396491]
[1644782457869,1.92408,2859.9,2859.6,0.01084041]
[1644782458064,0.87464,2859.7,2859.6,0.01084041]
[1644782458664,1.04944,2859.7,2859.6,0.01084041]
[1644782458863,1.04944,2859.7,2859.3,0.09396491]
[1644782459166,0.1748,2859.6,2859.5,0.01071689]
[1644782459463,1.25826808,2859.6,2859.5,0.01071689]
[1644782460109,1.25826808,2859.6,2859.3,0.09396491]
[1644782460309,1.25826808,2859.6,2859.4,0.01071701]
[1644782460711,1.08346808,2859.6,2859.4,0.01071701]
[1644782461313,8.2261,2859.9,2859.3,0.09396491]
[1644782461512,3.7404,2859.9,2859.4,1.49959951]
[1644782461712,5.14203439,2860.2,2859.5,1.48888243]
[1644782461911,5.14203439,2860.2,2859.4,0.01071708]
[1644782461912,0.00393439,2860.2,2859.4,0.01071708]
[1644782462312,0.92651024,2860.0,2859.5,1.48889463]
[1644782462513,0.00393439,2860.2,2859.5,1.48889463]
[1644782462712,0.00393439,2860.2,2859.6,1.79962002]
[1644782462913,0.1748,2860.4,2859.6,1.79962002]
[1644782462914,0.13945682,2860.4,2859.7,1.48889463]
[1644782463212,0.87443,2860.5,2859.6,0.01072539]
[1644782463415,7.6395,2860.6,2859.6,0.01072539]
[1644782463416,1.15158592,2860.1,2859.6,0.01072539]
[1644782463676,1.15158592,2860.1,2859.4,0.1748]
[1644782463859,1.15158592,2860.1,2859.5,1.48884332]
[1644782464259,0.1748,2860.5,2859.6,0.3]
[1644782464459,0.1748,2860.8,2859.7,2.36309332]
[1644782464660,4.4048,2860.9,2859.9,0.8742]
[1644782464862,4.23,2860.9,2859.9,0.8742]
[1644782465063,4.23,2860.9,2859.8,1.04905]
[1644782465259,4.23,2860.9,2859.8,0.1748]
[1644782465460,5.10429,2860.9,2859.8,0.1748]
[1644782465664,0.00393669,2860.8,2859.7,0.1748]
[1644782465861,0.90164545,2860.2,2859.8,1.48871556]
[1644782466061,0.90164545,2860.2,2859.7,0.1748]
[1644782466265,0.00393669,2860.1,2860.0,0.01139509]
[1644782466462,0.90164545,2860.2,2860.0,0.01139509]
[1644782467263,0.90164545,2860.2,2859.7,0.1748]
[1644782467520,0.00393669,2860.1,2860.0,0.01139494]
[1644782467716,0.90164545,2860.2,2860.0,0.01139494]
[1644782468520,0.00393669,2860.6,2859.7,0.87426]
[1644782468724,0.00393669,2860.1,2860.0,0.01139494]
[1644782468920,0.011393,2860.4,2860.0,0.01139494]
[1644782469716,1.18805223,2860.5,2859.9,0.3]
[1644782470017,0.01532997,2860.4,2860.0,0.01139495]
[1644782470215,0.01139328,2860.4,2860.0,0.01139495]
[1644782470416,0.01532997,2860.4,2860.0,0.01139495]
[1644782470817,0.00393669,2860.4,2859.7,0.3]
[1644782471022,0.00393669,2860.4,2859.8,1.48855942]
[1644782471265,0.01139328,2860.4,2860.0,0.01139495]
[1644782471471,0.01139328,2860.4,2860.1,1.48855942]
[1644782471659,0.01139328,2860.4,2860.1,2.08855942]
[1644782471859,0.01139328,2860.4,2860.1,0.6]
[1644782472060,0.00393669,2861.0,2860.0,0.3]
[1644782472260,0.01139341,2860.4,2860.1,1.48848857]
[1644782472661,0.01139341,2860.4,2860.1,2.66259857]
[1644782472863,0.01139341,2860.4,2860.1,2.22305]
[1644782473260,0.00393669,2861.1,2860.1,1.34891]
[1644782473463,0.00393669,2861.1,2860.2,1.78847558]
[1644782473464,0.01139341,2860.4,2860.2,1.78847558]
[1644782473664,0.01139341,2860.4,2860.2,0.3]
[1644782474064,0.01139341,2860.4,2860.2,2.04817]
[1644782474264,0.00393669,2861.1,2860.4,4.66787244]
[1644782474462,0.00393669,2861.1,2860.5,3.83923635]
[1644782474763,0.04556282,2861.2,2860.4,0.01787244]
[1644782475411,0.04949951,2861.2,2860.5,0.505]
[1644782475610,0.00393669,2861.2,2860.5,0.505]
[1644782475809,0.00393669,2861.2,2860.6,0.87394]
[1644782476011,0.00393669,2861.2,2860.6,0.87399]
[1644782477710,0.00393669,2861.2,2860.7,0.87398]
[1644782477911,0.00393669,2861.4,2860.7,1.74792]
[1644782478110,0.1917598,2861.6,2860.8,0.3]
[1644782478111,0.19569649,2861.6,2860.8,0.3]
[1644782478310,0.01139275,2861.1,2860.8,0.3]
[1644782479364,0.02109649,2861.6,2860.9,0.87392]
[1644782479565,0.00787478,2861.1,2860.9,1.17392]
[1644782480166,0.00682967,2861.1,2861.0,1.48808868]
[1644782480566,0.02109649,2861.6,2861.0,2.66196868]
[1644782480766,0.02109649,2861.6,2861.0,1.17388]
[1644782481369,0.02109649,2861.6,2861.1,1.48807826]
[1644782481567,0.02109649,2861.6,2861.1,0.3]
[1644782481770,0.02109649,2861.6,2860.9,2.04783]
[1644782482812,0.02109649,2861.6,2860.9,1.74783]
[1644782483008,0.02109649,2861.6,2861.0,0.87388]
[1644782483206,0.01139659,2861.4,2861.0,2.62162]
[1644782483408,0.01139659,2861.4,2861.0,1.74775]
[1644782484008,0.92329254,2861.7,2861.0,1.74775]
[1644782484208,0.00394449,2861.6,2861.1,1.74774]
[1644782484412,0.01139665,2861.3,2861.1,1.74774]
[1644782484808,0.01139665,2861.3,2860.8,1.74772]
[1644782485010,0.01139665,2861.3,2860.9,1.96267247]
[1644782485208,0.00394449,2861.6,2861.0,1.78807247]
[1644782485409,0.00394449,2861.6,2860.9,0.4746]
[1644782485610,0.00394449,2861.6,2860.9,1.04854]
[1644782485811,0.00394449,2861.6,2861.0,1.74783]
[1644782486359,0.17854449,2861.6,2860.9,0.1746]
[1644782487259,1.05266449,2861.6,2860.9,0.1746]
[1644782487458,1.06560162,2861.0,2860.9,0.1746]
[1644782489060,1.06560162,2861.0,2860.4,0.01787244]
[1644782489261,0.00394449,2860.9,2860.8,0.01139817]
[1644782489462,1.06560162,2861.0,2860.8,0.01139817]
[1644782490106,1.06560162,2861.0,2860.4,0.01787244]
[1644782490309,0.00394449,2860.9,2860.8,0.01139816]
[1644782490509,1.06560162,2861.0,2860.8,0.01139816]
[1644782491316,1.06560162,2861.0,2860.4,0.01787244]
[1644782491512,0.00394449,2860.9,2860.8,0.01139816]
[1644782491711,1.06560162,2861.0,2860.8,0.01139816]
[1644782492610,0.00394449,2861.3,2860.4,0.89190244]
[1644782492811,0.00394449,2860.9,2860.8,0.01139816]
[1644782493012,0.00394449,2861.3,2860.8,0.01139816]
[1644782493664,0.00394449,2861.3,2860.4,0.01787244]
[1644782493865,0.00394449,2861.3,2860.5,1.48821487]
[1644782494063,0.00394449,2861.3,2860.8,0.01139844]
[1644782494265,3.8336,2861.4,2860.8,0.01139844]
[1644782494266,3.74015757,2861.4,2860.8,0.01139844]
[1644782494465,1.23989544,2861.5,2860.8,0.01139844]
[1644782494865,1.2285,2861.5,2860.4,0.1746]
[1644782495067,0.1746,2861.4,2860.5,1.48827235]
[1644782495266,0.94005012,2861.1,2860.8,0.01139872]
[1644782496167,0.94005012,2861.1,2860.6,0.3]
[1644782496366,1.2285,2861.5,2860.6,0.3]
[1644782496367,0.01139516,2861.5,2860.8,0.01139817]
[1644782496569,0.01139516,2861.5,2860.9,1.48816353]
[1644782496867,0.01139516,2861.5,2860.9,3.53598353]
[1644782497168,0.01139516,2861.5,2861.0,1.48816353]
[1644782497405,1.09502313,2861.6,2861.0,2.66199353]
[1644782497713,0.01139585,2861.5,2861.1,1.78816353]